bitfinex-derivatives/quotes_BTCF0:USTF0_20251103
["timestamp","ask_amount","ask_price","bid_price","bid_amount"]
[1762184333398,0.17748,106400.0,106390.0,0.4548178]
[1762184334504,0.17748,106400.0,106390.0,0.8065678]
[1762184334899,0.3369,106400.0,106390.0,0.3608]
[1762184335397,0.3289,106400.0,106390.0,0.4548179]
[1762184335590,0.43872,106410.0,106400.0,0.094009]
[1762184335790,0.43872,106410.0,106400.0,0.454809]
[1762184336199,0.43872,106410.0,106390.0,0.3608]
[1762184336389,0.4229175,106390.0,106380.0,0.71255]
[1762184336590,0.0940142,106400.0,106390.0,0.0940175]
[1762184336789,0.2038277,106410.0,106390.0,0.54478]
[1762184336998,0.3733077,106410.0,106400.0,0.8065586]
[1762184337203,0.3773077,106410.0,106400.0,0.71255]
[1762184337709,0.44272,106410.0,106400.0,0.8065582]
[1762184337891,0.17648,106410.0,106400.0,0.8065582]
[1762184338096,0.007,106410.0,106400.0,0.8065582]
[1762184338594,0.007,106410.0,106400.0,1.01490421]
[1762184338796,0.007,106410.0,106400.0,1.05446421]
[1762184338997,0.10267091,106430.0,106420.0,0.2779711]
[1762184339303,0.4351,106440.0,106430.0,0.093982]
[1762184339500,0.4351,106440.0,106430.0,0.454782]
[1762184339703,0.5290732,106440.0,106430.0,0.3608]
[1762184340101,0.5290732,106440.0,106430.0,0.54478]
[1762184340408,0.3319,106450.0,106440.0,0.0939731]
[1762184340706,0.003,106450.0,106440.0,1.01486911]
[1762184340897,0.003,106450.0,106440.0,0.8065231]
[1762184341099,0.10444247,106470.0,106450.0,0.0939572]
[1762184341301,0.43334247,106470.0,106460.0,0.3608]
[1762184341602,0.09571,106480.0,106460.0,1.1673054]
[1762184341797,0.00904373,106480.0,106470.0,0.71255]
[1762184341994,0.003,106490.0,106470.0,0.71255]
[1762184342198,0.6927,106490.0,106470.0,0.3608]
[1762184342403,0.16948,106480.0,106470.0,0.71255]
[1762184342603,0.003,106490.0,106470.0,1.01484261]
[1762184342801,0.17248,106490.0,106480.0,0.3608]
[1762184343004,0.3319,106490.0,106480.0,0.3608]
[1762184343200,0.3319,106490.0,106480.0,0.8064877]
[1762184343415,0.003,106490.0,106480.0,0.8064877]
[1762184344100,0.48999998,106520.0,106480.0,0.71255]
[1762184344308,0.3289,106500.0,106490.0,0.3608]
[1762184344695,0.3289,106480.0,106470.0,0.001]
[1762184344898,0.6897,106480.0,106470.0,0.001]
[1762184345404,0.3289,106480.0,106470.0,0.001]
[1762184345612,0.3289,106480.0,106470.0,0.3618]
[1762184345817,0.3289,106480.0,106470.0,0.54578]
[1762184346302,0.3289,106480.0,106470.0,0.6387268]
[1762184346900,0.3289,106480.0,106470.0,0.3608]
[1762184347215,0.3289,106480.0,106460.0,0.4547508]
[1762184347401,0.3289,106480.0,106470.0,0.3608]
[1762184347705,0.3329,106480.0,106470.0,0.454747]
[1762184347896,0.004,106480.0,106470.0,1.01584301]
[1762184348096,0.029,106480.0,106470.0,0.807497]
[1762184348310,0.02376836,106480.0,106470.0,1.01584301]
[1762184349400,0.16948,106500.0,106490.0,0.0939285]
[1762184349605,0.16948,106500.0,106490.0,0.3608]
[1762184349800,0.46558301,106520.0,106490.0,0.8064788]
[1762184350006,0.3289,106510.0,106500.0,0.3608]
[1762184350705,0.007,106500.0,106490.0,0.3608]
[1762184350915,0.007,106500.0,106490.0,0.71255]
[1762184351101,0.007,106500.0,106490.0,1.01482481]
[1762184351403,0.44561,106520.0,106510.0,0.0939117]
[1762184351608,0.44561,106520.0,106510.0,0.3608]
[1762184351812,0.44561,106520.0,106510.0,0.4547112]
[1762184351998,0.44561,106520.0,106510.0,0.8064612]
[1762184352605,0.44561,106520.0,106510.0,0.71255]
[1762184352801,0.021,106520.0,106510.0,0.71255]
[1762184353106,0.3499,106520.0,106510.0,0.71255]
[1762184353307,0.3289,106510.0,106500.0,0.3608]
[1762184353511,0.3289,106490.0,106480.0,0.3608]
[1762184354010,0.42461,106480.0,106470.0,0.3608]
[1762184354405,0.32634,106470.0,106460.0,8.444e-05]
[1762184354607,0.68714,106470.0,106460.0,8.444e-05]
[1762184354907,0.89548601,106470.0,106460.0,8.444e-05]
[1762184355307,0.32434,106470.0,106460.0,8.444e-05]
[1762184355511,0.4182873,106470.0,106460.0,8.444e-05]
[1762184355706,0.418795,106450.0,106430.0,0.3608]
[1762184355914,0.5104238,106440.0,106430.0,0.3608]
[1762184356411,0.5104238,106440.0,106430.0,0.4547827]
[1762184356607,0.5104238,106440.0,106430.0,0.3608]
[1762184356818,0.51051013,106440.0,106430.0,0.3608]
[1762184357115,0.41453633,106440.0,106430.0,0.4547837]
[1762184357406,0.41453633,106440.0,106430.0,0.3608]
[1762184358108,0.41453633,106440.0,106430.0,0.6202736]
[1762184358418,0.00808633,106440.0,106430.0,0.98425961]
[1762184358606,0.00808633,106440.0,106430.0,1.21913961]
[1762184358806,0.09162,106460.0,106440.0,0.0939674]
[1762184359015,0.09571,106480.0,106450.0,1.1366953]
[1762184359205,0.32483,106470.0,106460.0,0.3608]
[1762184359508,0.32483,106470.0,106460.0,0.4547564]
[1762184359708,0.32483,106470.0,106460.0,0.6202464]
[1762184360014,0.32483,106460.0,106450.0,0.3608]
[1762184360605,0.32483,106460.0,106450.0,0.52629]
[1762184361008,0.32483,106460.0,106450.0,0.68193]
[1762184361205,0.32483,106460.0,106450.0,0.775896]
[1762184361408,0.45651,106480.0,106450.0,0.73232831]
[1762184361607,0.32483,106470.0,106460.0,0.3608]
[1762184361912,0.32483,106470.0,106460.0,0.7758867]
[1762184362116,0.16797,106470.0,106460.0,0.68193]
[1762184362306,0.09571,106480.0,106470.0,0.0939474]
[1762184362503,0.09571,106480.0,106470.0,0.7758774]
[1762184362707,0.09571,106500.0,106470.0,0.56914601]
[1762184362908,0.09571,106500.0,106490.0,0.3608]
[1762184362909,0.514461,106500.0,106490.0,0.3608]
[1762184363111,0.5144617,106500.0,106490.0,0.3608]
[1762184363411,0.5144617,106500.0,106490.0,0.52629]
[1762184363610,0.5144617,106500.0,106490.0,0.3608]
[1762184363810,0.5144617,106500.0,106470.0,0.66308881]
[1762184363811,0.093933,106490.0,106480.0,0.52629]
[1762184364010,0.093933,106490.0,106480.0,0.68193]
[1762184364217,0.09571,106500.0,106490.0,0.0939309]
[1762184364421,0.26368,106500.0,106490.0,0.6202209]
[1762184364718,0.09162,106520.0,106510.0,0.0939126]
[1762184364907,0.16797,106520.0,106510.0,1.1366426]
[1762184365219,0.264869,106530.0,106520.0,0.32113]
[1762184365515,0.264869,106530.0,106520.0,0.68193]
[1762184365711,0.32783,106530.0,106520.0,0.68193]
[1762184365924,0.003,106530.0,106520.0,0.7758345]
[1762184366416,0.20990547,106560.0,106530.0,0.0938895]
[1762184366417,0.19583173,106560.0,106530.0,0.0938895]
[1762184366717,0.2618521,106550.0,106540.0,0.3608]
[1762184366919,0.0938858,106540.0,106530.0,0.3608]
[1762184367115,0.2618558,106540.0,106530.0,0.3608]
[1762184367419,0.32483,106540.0,106530.0,0.6201854]
[1762184367716,0.10196073,106560.0,106530.0,0.7758254]
[1762184367907,0.12339435,106560.0,106540.0,0.3608]
[1762184368113,0.16797,106550.0,106540.0,0.3608]
[1762184368415,0.261847,106550.0,106540.0,0.3608]
[1762184369218,0.4187166,106540.0,106530.0,0.3608]
[1762184369612,0.0938866,106540.0,106530.0,0.68193]
[1762184369917,0.007,106540.0,106530.0,0.68193]
[1762184370113,0.007,106540.0,106530.0,0.7758257]
[1762184370714,0.007,106540.0,106530.0,0.68193]
[1762184371019,0.17497,106540.0,106530.0,0.68193]
[1762184371409,0.17497,106540.0,106530.0,0.7758257]
[1762184371410,0.007,106540.0,106530.0,0.7758257]
[1762184371610,0.007,106540.0,106530.0,0.68193]
[1762184372013,0.005,106550.0,106530.0,0.7758258]
[1762184372213,0.17297,106550.0,106540.0,0.3608]
[1762184372620,0.32983,106550.0,106540.0,0.3608]
[1762184372819,0.41645,106540.0,106530.0,0.3608]
[1762184373218,0.41745,106540.0,106530.0,0.52629]
[1762184373424,0.41745,106540.0,106530.0,0.3608]
[1762184373611,0.26059,106540.0,106530.0,0.68193]
[1762184373923,0.16897,106540.0,106530.0,0.7758248]
[1762184374222,0.17197,106540.0,106530.0,0.7758248]
[1762184374613,0.4169,106540.0,106530.0,0.68193]
[1762184374818,0.4169,106540.0,106530.0,0.3608]
[1762184375020,0.27383,106530.0,106520.0,0.3608]
[1762184375210,0.27283,106530.0,106520.0,0.3608]
[1762184375720,0.27283,106530.0,106520.0,0.4547034]
[1762184376030,0.27283,106530.0,106520.0,0.5943534]
[1762184376321,0.3619,106540.0,106520.0,0.59247481]
[1762184376515,0.001,106530.0,106520.0,0.87821481]
[1762184376710,0.001,106530.0,106520.0,1.23901481]
[1762184377818,0.001,106530.0,106520.0,1.14511741]
[1762184378018,0.001,106530.0,106520.0,1.23902061]
[1762184378224,0.0948943,106530.0,106520.0,1.23902051]
[1762184378519,0.0948943,106530.0,106520.0,1.14511741]
[1762184378720,0.4546838,106550.0,106520.0,1.14511741]
[1762184378925,0.22473,106540.0,106530.0,0.5943437]
[1762184379110,0.001,106540.0,106530.0,0.87821111]
[1762184379823,0.10196073,106560.0,106550.0,0.3796165]
[1762184380019,0.10196073,106560.0,106550.0,1.1012165]
[1762184380219,0.09162,106560.0,106550.0,1.1012165]
[1762184380418,0.27683,106570.0,106560.0,0.0938677]
[1762184380625,0.27683,106570.0,106560.0,0.4546677]
[1762184380626,0.30898807,106570.0,106560.0,0.4546677]
[1762184381019,0.3619,106560.0,106550.0,0.3608]
[1762184381923,0.3619,106560.0,106550.0,0.4546771]
[1762184382226,0.3619,106560.0,106550.0,0.3608]
[1762184382429,0.3619,106560.0,106550.0,0.5943271]
[1762184382722,0.3619,106560.0,106550.0,0.3608]
[1762184383129,0.3619,106560.0,106540.0,0.49857741]
[1762184383130,0.27383,106550.0,106540.0,0.3608]
[1762184383424,0.13566,106530.0,106520.0,0.3608]
[1762184383619,0.22373,106520.0,106500.0,0.49857741]
[1762184383923,0.3619,106520.0,106500.0,0.49857741]
[1762184384324,0.3619,106520.0,106510.0,0.3608]
[1762184385025,0.3619,106520.0,106510.0,0.4547118]
[1762184385221,0.3619,106520.0,106510.0,0.86537921]
[1762184385420,0.3619,106520.0,106510.0,0.63369]
[1762184385629,0.3639,106520.0,106510.0,0.3608]
[1762184385823,0.3639,106520.0,106510.0,0.7259118]
[1762184386227,0.3639,106520.0,106510.0,0.76977741]
[1762184386426,0.3639,106520.0,106510.0,0.86368961]
[1762184387025,0.3639,106520.0,106510.0,0.76977741]
[1762184387222,0.3639,106520.0,106500.0,0.50357741]
[1762184387223,0.2745,106510.0,106500.0,0.50357741]
[1762184387423,0.2745,106510.0,106500.0,0.77477741]
[1762184387630,0.13948,106510.0,106500.0,0.77477741]
[1762184388023,0.13948,106510.0,106500.0,0.86369851]
[1762184388224,0.2745,106510.0,106500.0,0.3608]
[1762184388530,0.2745,106510.0,106480.0,0.3608]
[1762184388531,0.2745,106490.0,106480.0,0.3608]
[1762184389235,0.2745,106490.0,106470.0,0.36088479]
[1762184389429,0.35235,106480.0,106470.0,0.36088479]
[1762184389937,0.07685,106500.0,106480.0,0.0939328]
[1762184390127,0.35135,106500.0,106490.0,0.59250721]
[1762184390434,0.37242916,106510.0,106490.0,0.59250721]
[1762184390435,0.01162916,106510.0,106500.0,0.365121]
[1762184390629,0.01162916,106510.0,106500.0,0.86369841]
[1762184390833,0.001,106510.0,106500.0,0.86369841]
[1762184391137,0.37287917,106520.0,106500.0,0.49857741]
[1762184391434,0.37287917,106520.0,106510.0,0.3608]
[1762184392028,0.37287917,106520.0,106510.0,0.5926719]
[1762184392434,0.37287917,106520.0,106510.0,0.7259119]
[1762184392637,0.37487917,106520.0,106510.0,0.7259119]
[1762184392838,0.37487917,106520.0,106510.0,0.86368931]
[1762184393232,0.37487917,106520.0,106510.0,0.632]
[1762184393442,0.01230917,106520.0,106510.0,0.86368981]
[1762184394040,0.15178917,106520.0,106510.0,0.76977741]
[1762184394335,0.36765917,106520.0,106510.0,0.632]
[1762184394537,0.2745,106510.0,106500.0,0.3608]
[1762184395333,0.2745,106510.0,106490.0,0.65973172]
[1762184395533,0.2745,106510.0,106500.0,0.42802491]
[1762184395728,0.2745,106510.0,106500.0,0.3608]
[1762184395928,0.2745,106510.0,106500.0,0.65972342]
[1762184396133,0.001,106510.0,106500.0,0.93092342]
[1762184396734,0.003,106520.0,106510.0,0.3651123]
[1762184396928,0.003,106520.0,106510.0,0.93091462]
[1762184397129,0.003,106520.0,106510.0,0.69922491]
[1762184397334,0.21733,106520.0,106500.0,0.56580232]
[1762184397534,0.35235,106520.0,106510.0,0.20500232]
[1762184397743,0.35235,106520.0,106510.0,0.42802491]
[1762184397934,0.35235,106520.0,106510.0,0.70376232]
[1762184398132,0.35535,106520.0,106510.0,0.83700232]
[1762184398328,0.35735,106520.0,106510.0,0.83700232]
[1762184398836,0.35735,106520.0,106510.0,0.06722491]
[1762184400033,0.2745,106510.0,106500.0,0.06722491]
[1762184400235,0.35235,106500.0,106490.0,0.70376232]
[1762184400440,0.2745,106510.0,106490.0,0.65972752]
[1762184400638,0.35235,106500.0,106490.0,0.63653741]
[1762184400836,0.35235,106500.0,106490.0,0.44489404]
[1762184401038,0.2745,106490.0,106480.0,0.56287778]
[1762184401244,0.6353,106490.0,106480.0,0.20207778]
[1762184401431,0.87006,106490.0,106480.0,0.08409404]
[1762184401839,1.00783741,106490.0,106480.0,0.08409404]
[1762184402045,0.35235,106480.0,106470.0,0.20216257]
[1762184402234,0.35235,106480.0,106470.0,0.08417883]
[1762184402235,1.02293046,106480.0,106470.0,0.08417883]
[1762184402437,0.42733046,106480.0,106470.0,0.08417883]
[1762184402937,0.42733046,106480.0,106470.0,0.44497883]
[1762184403135,0.002,106490.0,106470.0,0.8638105]
[1762184403332,0.002,106490.0,106480.0,0.86371651]
[1762184403531,0.44165,106520.0,106480.0,0.59251651]
[1762184403532,0.08085,106520.0,106480.0,0.59251651]
[1762184403737,0.35535,106520.0,106510.0,0.5660026]
[1762184403937,0.35535,106520.0,106510.0,0.9311152]
[1762184403938,0.21733,106520.0,106510.0,0.9311152]
[1762184404242,0.01067187,106530.0,106510.0,0.9311152]
[1762184404442,0.2745,106530.0,106520.0,0.3608]
[1762184405141,0.35235,106520.0,106510.0,0.56618519]
[1762184405339,0.35235,106520.0,106510.0,0.79333779]
[1762184405541,0.35235,106520.0,106510.0,0.06742519]
[1762184405741,0.2745,106510.0,106500.0,0.06742519]
[1762184406151,0.6353,106510.0,106500.0,0.06742519]
[1762184406442,0.2745,106510.0,106500.0,0.06742519]
[1762184406643,1.00779741,106510.0,106500.0,0.06742519]
[1762184406839,0.35235,106500.0,106490.0,0.06742519]
[1762184407038,0.71315,106500.0,106490.0,0.06742519]
[1762184407235,0.2745,106490.0,106480.0,0.004]
[1762184407441,0.77307741,106490.0,106480.0,0.004]
[1762184407650,0.87006,106490.0,106480.0,0.004]
[1762184408051,0.2745,106480.0,106470.0,8.479e-05]
[1762184408235,0.8701,106480.0,106470.0,8.479e-05]
[1762184408744,1.08252799,106480.0,106470.0,4.79e-06]
[1762184408945,1.08252799,106480.0,106460.0,0.0873811]
[1762184408946,0.2745,106470.0,106460.0,0.0873811]
[1762184409140,0.2745,106460.0,106450.0,0.11798374]
[1762184409339,0.2745,106430.0,106420.0,0.07294383]
[1762184409636,0.2745,106430.0,106420.0,0.3608]
[1762184409834,1.7745,106430.0,106420.0,0.63653741]
[1762184410041,1.77458479,106430.0,106420.0,0.49876]
[1762184410852,1.50008479,106430.0,106420.0,0.77377741]
[1762184411042,1.50008479,106430.0,106420.0,0.004]
[1762184411548,1.86088479,106430.0,106420.0,0.004]
[1762184412450,1.50008479,106430.0,106420.0,0.86776951]
[1762184412941,0.3608,106450.0,106420.0,0.86776951]
[1762184413147,0.13948,106440.0,106430.0,0.3608]
[1762184413351,0.14987784,106440.0,106430.0,0.3608]
[1762184413644,2.01067784,106440.0,106420.0,0.14877741]
[1762184413859,0.6353,106430.0,106420.0,0.011]
[1762184414849,0.26228,106410.0,106400.0,0.3608]
[1762184415146,0.3608,106420.0,106400.0,0.7329413]
[1762184415348,0.3608,106430.0,106410.0,0.3608]
[1762184415553,0.26228,106410.0,106400.0,0.3608]
[1762184416146,0.25728,106400.0,106390.0,0.3608]
[1762184416444,0.25528,106400.0,106390.0,0.27813]
[1762184416850,0.61608,106400.0,106380.0,0.36390194]
[1762184417042,0.13646,106390.0,106380.0,0.36390194]
[1762184417353,0.3608,106400.0,106380.0,0.72153194]
[1762184417947,0.26228,106390.0,106380.0,0.36390194]
[1762184418148,0.26228,106390.0,106380.0,0.00310194]
[1762184418349,0.62308,106390.0,106380.0,0.00310194]
[1762184419941,0.13646,106380.0,106370.0,7.414e-05]
[1762184420249,0.12582,106360.0,106340.0,0.45796851]
[1762184420450,0.26228,106350.0,106340.0,0.00310311]
[1762184420949,0.62308,106350.0,106340.0,0.00310311]
[1762184421149,0.69864828,106350.0,106340.0,0.00310311]
[1762184421343,0.62215414,106350.0,106340.0,0.00310311]
[1762184422146,0.62215414,106350.0,106340.0,0.87687612]
[1762184422147,7.414e-05,106350.0,106340.0,0.87687612]
[1762184422648,7.414e-05,106350.0,106340.0,0.73909871]
[1762184422850,7.414e-05,106350.0,106340.0,0.87687612]
[1762184424149,7.414e-05,106350.0,106340.0,0.88287612]
[1762184424353,0.13653414,106350.0,106340.0,0.65103311]
[1762184424559,0.26235414,106350.0,106340.0,0.37290311]
[1762184424752,0.66500414,106350.0,106340.0,0.01210311]
[1762184425255,0.26235414,106350.0,106340.0,0.46696851]
[1762184425444,0.13653414,106350.0,106340.0,0.74509851]
[1762184425649,7.414e-05,106350.0,106340.0,0.88287592]
[1762184426444,0.74856,106390.0,106360.0,0.0940392]
[1762184426642,0.74856,106390.0,106360.0,0.59261661]
[1762184426848,0.3608,106390.0,106360.0,0.4548392]
[1762184427155,0.3608,106390.0,106360.0,0.67211661]
[1762184427655,0.3608,106390.0,106360.0,0.67212441]
[1762184427843,0.3608,106390.0,106360.0,0.57807741]
[1762184428045,0.26228,106370.0,106360.0,0.3608]
[1762184428358,0.2304987,106370.0,106360.0,0.63893]
[1762184428557,0.0940364,106380.0,106360.0,0.8124776]
[1762184428759,0.13646,106380.0,106370.0,0.50994181]
[1762184429056,0.13646,106380.0,106370.0,0.7329687]
[1762184429449,0.13646,106380.0,106370.0,0.63893]
[1762184429450,0.2304899,106380.0,106370.0,0.63893]
[1762184429649,0.2304899,106380.0,106370.0,0.7329685]
[1762184429845,0.2304899,106380.0,106370.0,0.63893]
[1762184430246,0.26228,106380.0,106370.0,0.63893]
[1762184430451,0.3603096,106380.0,106370.0,0.63893]
[1762184430658,0.3603096,106380.0,106370.0,0.27813]
[1762184430959,0.3603096,106380.0,106360.0,0.67212421]
[1762184430960,0.3455182,106370.0,106360.0,0.3608]
[1762184431263,0.3455359,106350.0,106340.0,0.00310311]
[1762184431552,0.3608,106360.0,106340.0,0.70313781]
[1762184431753,0.094056,106350.0,106340.0,0.82063052]
[1762184431951,0.4548522,106360.0,106340.0,0.77691181]
[1762184432353,0.3608,106360.0,106350.0,0.220546]
[1762184432553,0.094047,106360.0,106350.0,0.581346]
[1762184432752,0.094047,106360.0,106350.0,0.60597]
[1762184432948,0.345527,106360.0,106350.0,0.12649]
[1762184433153,0.0940516,106360.0,106350.0,0.5813426]
[1762184433356,0.8416061,106370.0,106350.0,0.7000226]
[1762184433562,0.63824,106370.0,106360.0,0.454847]
[1762184433759,0.38676,106370.0,106360.0,0.91157441]
[1762184433959,0.12543,106380.0,106370.0,0.2205282]
[1762184434167,0.12543,106380.0,106370.0,0.5813282]
[1762184434168,0.2194594,106380.0,106370.0,0.5813282]
[1762184434455,0.12543,106380.0,106370.0,0.7000082]
[1762184434663,0.0940249,106390.0,106370.0,0.83778561]
[1762184434857,0.4548134,106400.0,106380.0,0.4548247]
[1762184435156,0.12543,106400.0,106390.0,0.0940205]
[1762184435356,0.2194417,106400.0,106390.0,0.4548205]
[1762184435662,0.12543,106400.0,106390.0,0.6999905]
[1762184435964,0.12543,106400.0,106390.0,0.6999907]
[1762184436157,0.2194419,106400.0,106390.0,0.6999907]
[1762184436458,0.2254419,106400.0,106390.0,0.3391907]
[1762184436654,0.2274419,106400.0,106390.0,0.6999907]
[1762184436852,0.008,106400.0,106390.0,0.6999907]
[1762184437052,0.3608,106430.0,106410.0,0.24517]
[1762184437253,0.3608,106430.0,106390.0,0.3608]
[1762184437254,0.3454841,106410.0,106390.0,0.3608]
[1762184437461,0.3454929,106400.0,106390.0,0.3608]
[1762184437760,0.3454929,106400.0,106390.0,0.12649]
[1762184437954,0.3455015,106390.0,106380.0,0.12649]
[1762184438157,0.2194603,106380.0,106370.0,0.48729]
[1762184438460,0.3455103,106380.0,106370.0,0.48729]
[1762184438848,0.25148,106380.0,106370.0,0.700008]
[1762184439056,0.2194598,106380.0,106370.0,0.700008]
[1762184439256,0.12543,106380.0,106370.0,0.700008]
[1762184439456,0.3608,106390.0,106380.0,0.3392]
[1762184439659,0.7082984,106400.0,106380.0,0.3608]
[1762184439863,0.7082984,106400.0,106390.0,0.0940224]
[1762184439864,0.25148,106400.0,106390.0,0.0940224]
[1762184440063,0.25148,106400.0,106390.0,0.6999924]
[1762184440559,0.2194372,106410.0,106400.0,0.0940122]
[1762184440858,0.12543,106410.0,106400.0,0.5813022]
[1762184441065,0.3454745,106420.0,106410.0,0.0940034]
[1762184441366,0.0940029,106410.0,106400.0,0.7737617]
[1762184441664,0.12543,106420.0,106410.0,0.0939991]
[1762184441856,0.0940028,106410.0,106400.0,0.4129557]
[1762184442059,0.0940046,106410.0,106400.0,0.7737557]
[1762184442262,0.0940046,106410.0,106400.0,0.67975]
[1762184442765,0.2194434,106400.0,106390.0,0.48729]
[1762184442961,0.0940223,106390.0,106380.0,0.56107]
[1762184443154,0.66320715,106410.0,106380.0,0.7737811]
[1762184443464,0.25148,106400.0,106380.0,0.43458]
[1762184443858,0.25148,106390.0,106370.0,0.4548366]
[1762184444267,0.12607,106400.0,106390.0,0.0940204]
[1762184444462,0.12607,106400.0,106390.0,0.7065422]
[1762184444667,0.3628,106410.0,106390.0,0.61252]
[1762184444964,0.38806388,106410.0,106390.0,0.25172]
[1762184445159,0.38806388,106410.0,106390.0,0.7065417]
[1762184445760,0.02726388,106410.0,106390.0,0.7065417]
[1762184446067,0.15333388,106410.0,106400.0,0.3457333]
[1762184446764,0.002,106410.0,106400.0,0.7744933]
[1762184446964,0.002,106410.0,106400.0,0.68048]
[1762184447162,0.222074,106410.0,106400.0,0.25172]
[1762184447363,0.0990129,106400.0,106390.0,0.7065399]
[1762184447668,0.005,106400.0,106390.0,0.7065399]
[1762184447868,0.005,106400.0,106390.0,0.91494245]
[1762184448168,0.004,106410.0,106400.0,0.413693]
[1762184448560,0.004,106410.0,106400.0,0.31968]
[1762184448870,0.004,106410.0,106400.0,0.413693]
[1762184449070,0.004,106410.0,106400.0,0.774493]
[1762184449771,0.004,106410.0,106400.0,0.68048]
[1762184449963,0.24972,106410.0,106400.0,0.25172]
[1762184450166,0.24572,106410.0,106400.0,0.706533]
[1762184450365,0.13007,106410.0,106400.0,0.706533]
[1762184450865,0.61052,106410.0,106390.0,0.001]
[1762184451171,0.24572,106400.0,106390.0,0.3467424]
[1762184451766,0.12607,106400.0,106390.0,0.3457424]
[1762184451974,0.12607,106400.0,106390.0,0.25172]
[1762184452170,0.24572,106400.0,106380.0,0.5227843]
[1762184452371,0.3648,106410.0,106390.0,0.3457419]
[1762184452572,0.3648,106410.0,106390.0,0.25172]
[1762184452766,0.004,106410.0,106400.0,0.7744926]
[1762184452972,0.004,106410.0,106400.0,0.4136926]
[1762184453174,0.004,106410.0,106400.0,0.7744926]
[1762184453773,0.006,106410.0,106400.0,0.7744926]
[1762184454579,0.002,106410.0,106400.0,0.6455526]
[1762184454771,0.002,106410.0,106400.0,0.7744926]
[1762184455472,0.002,106410.0,106400.0,0.68048]
[1762184455671,0.004,106410.0,106400.0,0.7744937]
[1762184456675,0.004,106410.0,106400.0,0.98289625]
[1762184456978,2.0542897,106440.0,106430.0,0.25172]
[1762184456979,2.04237113,106440.0,106430.0,0.25172]
[1762184457176,2.067292,106440.0,106430.0,0.25172]
[1762184457579,1.9733136,106440.0,106430.0,0.3457073]
[1762184457774,1.8974398,106440.0,106430.0,0.3457073]
[1762184458075,1.9914183,106440.0,106430.0,0.25172]
[1762184458279,1.5366398,106440.0,106430.0,0.7065073]
[1762184458480,1.6376183,106440.0,106430.0,0.7065073]
[1762184458679,1.5436398,106440.0,106430.0,0.7065073]
[1762184458974,1.51871893,106440.0,106430.0,0.7065073]
[1762184459176,1.51871893,106440.0,106430.0,0.61252]
[1762184459378,1.51871893,106440.0,106430.0,0.7065073]
[1762184459573,0.24572,106430.0,106420.0,0.25172]
[1762184459781,0.24572,106430.0,106420.0,0.12894]
[1762184460082,0.60652,106430.0,106420.0,0.3457161]
[1762184460277,1.96547541,106440.0,106430.0,0.3457073]
[1762184460577,0.24572,106430.0,106420.0,0.48974]
[1762184460778,0.60652,106430.0,106400.0,0.9059691]
[1762184461073,0.3608,106420.0,106400.0,0.06796]
[1762184461277,0.24572,106410.0,106400.0,0.0940138]
[1762184461477,0.24572,106410.0,106400.0,0.25172]
[1762184461783,0.24572,106410.0,106400.0,0.3457344]
[1762184461983,0.3608,106420.0,106400.0,0.31968]
[1762184462476,0.3608,106420.0,106400.0,0.25172]
[1762184462477,0.60652,106410.0,106400.0,0.25172]
[1762184462682,0.60752,106410.0,106390.0,0.3608]
[1762184462876,0.60752,106410.0,106380.0,0.522787]
[1762184462877,0.24572,106400.0,106380.0,0.522787]
[1762184463275,0.24572,106400.0,106390.0,0.222963]
[1762184463484,0.3618,106410.0,106400.0,0.3457341]
[1762184463780,0.001,106410.0,106400.0,0.7744941]
[1762184463976,0.002,106410.0,106400.0,0.7744941]
[1762184464478,0.002,106410.0,106400.0,0.25172]
[1762184464479,0.84348,106410.0,106400.0,0.25172]
[1762184464678,0.12607,106390.0,106380.0,0.774512]
[1762184464877,0.12607,106400.0,106390.0,0.0940181]
[1762184465084,0.12707,106410.0,106400.0,0.25172]
[1762184465281,0.001,106410.0,106400.0,0.4136944]
[1762184465478,0.001,106410.0,106400.0,0.98289695]
[1762184465674,0.001,106410.0,106400.0,1.21785695]
[1762184465879,1.68165491,106440.0,106430.0,0.3457077]
[1762184466074,1.61243725,106440.0,106430.0,0.25172]
[1762184466284,0.24572,106430.0,106400.0,0.42876]
[1762184466484,0.24572,106430.0,106420.0,0.25172]
[1762184466880,0.12607,106430.0,106420.0,0.3457147]
[1762184467078,2.02293541,106440.0,106420.0,0.4136748]
[1762184467284,1.94847541,106440.0,106420.0,0.4136748]
[1762184467582,1.94847541,106440.0,106420.0,0.06796]
[1762184467779,0.12607,106430.0,106420.0,0.31968]
[1762184467975,1.58767541,106440.0,106430.0,0.093985]
[1762184468185,1.58767541,106440.0,106430.0,0.345705]
[1762184468483,0.003,106450.0,106430.0,0.706505]
[1762184468688,0.003,106450.0,106440.0,0.7744545]
[1762184469091,1.52453131,106470.0,106460.0,0.4136387]
[1762184469388,1.5,106470.0,106460.0,0.7744387]
[1762184470189,0.24572,106480.0,106470.0,0.25172]
[1762184470782,0.24572,106480.0,106460.0,0.42876]
[1762184470989,0.12607,106470.0,106440.0,0.42876]
[1762184471178,0.48687,106470.0,106450.0,0.3608]
[1762184471380,0.60652,106460.0,106440.0,0.06796]
[1762184471579,0.60652,106460.0,106440.0,0.4136558]
[1762184471580,0.12607,106450.0,106440.0,0.4136558]
[1762184471790,0.3608,106470.0,106440.0,0.7744558]
[1762184472085,0.24572,106460.0,106450.0,0.3608]
[1762184472691,0.24372,106460.0,106450.0,0.3608]
[1762184472888,0.24372,106460.0,106450.0,0.48974]
[1762184473077,0.24272,106460.0,106450.0,0.48974]
[1762184473478,0.12407,106460.0,106450.0,0.706487]
[1762184473787,0.002,106460.0,106450.0,0.706487]
[1762184474186,0.002,106460.0,106450.0,0.91488955]
[1762184474789,0.01150019,106480.0,106470.0,0.21927]
[1762184475089,1.8638,106490.0,106470.0,0.3132189]
[1762184475392,1.8638,106490.0,106480.0,0.3132101]
[1762184475685,1.503,106490.0,106480.0,0.7407401]
[1762184475894,0.003,106490.0,106480.0,0.7407401]
[1762184476091,0.3608,106520.0,106500.0,0.1606521]
[1762184476277,0.1007997,106520.0,106510.0,0.2103336]
[1762184476482,0.6704517,106520.0,106510.0,0.11642]